[Event "Late-Titled-Tuesday-Blitz-January-16-2024"]
[Site "Chess.com"]
[Date "2024.01.16"]
[Round "5"]
[White "szachmistrz2500"]
[Black "HajiyevKanan"]
[Result "1/2-1/2"]
[WhiteElo "2437"]
[BlackElo "2575"]
[TimeControl "180+1"]
[EndTime "14:52:13 PST"]
[Termination "Game drawn by repetition"]

1. d4 {[%clk 0:03:00.9]} 1... d5 {[%clk 0:02:49.6]} 2. c4 {[%clk 0:03:00.5]}
2... c6 {[%clk 0:02:50.2]} 3. Nf3 {[%clk 0:02:59.9]} 3... Nf6 {[%clk 0:02:48.6]}
4. Qc2 {[%clk 0:02:59.4]} 4... g6 {[%clk 0:02:46.4]} 5. Nc3 {[%clk 0:02:58.7]}
5... Bg7 {[%clk 0:02:46.2]} 6. Bf4 {[%clk 0:02:58.5]} 6... O-O {[%clk
0:02:45.8]} 7. e3 {[%clk 0:02:58.5]} 7... Bf5 {[%clk 0:02:45.8]} 8. Bd3 {[%clk
0:02:52.1]} 8... Bxd3 {[%clk 0:02:45.4]} 9. Qxd3 {[%clk 0:02:52.7]} 9... Nbd7
{[%clk 0:02:44.9]} 10. O-O {[%clk 0:02:52]} 10... e6 {[%clk 0:02:43.9]} 11. h3
{[%clk 0:02:51.4]} 11... Re8 {[%clk 0:02:44.1]} 12. b4 {[%clk 0:02:50.3]} 12...
dxc4 {[%clk 0:02:41.5]} 13. Qxc4 {[%clk 0:02:49.7]} 13... a6 {[%clk 0:02:42.2]}
14. Rfd1 {[%clk 0:02:43.1]} 14... Nd5 {[%clk 0:02:42.3]} 15. Bg3 {[%clk
0:02:40.2]} 15... Nxc3 {[%clk 0:02:42.2]} 16. Qxc3 {[%clk 0:02:39.7]} 16... Qe7
{[%clk 0:02:35.8]} 17. a4 {[%clk 0:02:34.4]} 17... Rac8 {[%clk 0:02:35.7]} 18.
Rab1 {[%clk 0:02:27.5]} 18... e5 {[%clk 0:02:35.7]} 19. dxe5 {[%clk 0:02:20.5]}
19... Nxe5 {[%clk 0:02:36.6]} 20. Nxe5 {[%clk 0:02:18.3]} 20... Bxe5 {[%clk
0:02:37.5]} 21. Bxe5 {[%clk 0:02:17.4]} 21... Qxe5 {[%clk 0:02:38.4]} 22. Qxe5
{[%clk 0:02:16.7]} 22... Rxe5 {[%clk 0:02:39.3]} 23. Rd7 {[%clk 0:02:16.8]}
23... b5 {[%clk 0:02:13.7]} 24. Ra7 {[%clk 0:02:12.5]} 24... bxa4 {[%clk
0:02:09.1]} 25. Rxa6 {[%clk 0:02:12.5]} 25... Rb5 {[%clk 0:02:06.5]} 26. Rxa4
{[%clk 0:02:06.7]} 26... Rcb8 {[%clk 0:01:52.1]} 27. Rc1 {[%clk 0:02:06.2]}
27... R8b6 {[%clk 0:01:49.1]} 28. Ra8+ {[%clk 0:01:52.3]} 28... Kg7 {[%clk
0:01:49.1]} 29. Rc8 {[%clk 0:01:52.3]} 29... Rxb4 {[%clk 0:01:47.4]} 30. g4
{[%clk 0:01:47]} 30... Rb1 {[%clk 0:01:44.4]} 31. Rxc6 {[%clk 0:01:44.8]} 31...
Rxc6 {[%clk 0:01:33.2]} 32. Rxb1 {[%clk 0:01:43.6]} 32... Rc5 {[%clk 0:01:33.4]}
33. Rb6 {[%clk 0:01:42.8]} 33... h5 {[%clk 0:01:33.1]} 34. Kg2 {[%clk
0:01:42.5]} 34... hxg4 {[%clk 0:01:33.3]} 35. hxg4 {[%clk 0:01:42.5]} 35... g5
{[%clk 0:01:32.8]} 36. Kf3 {[%clk 0:01:38.9]} 36... f6 {[%clk 0:01:32.5]} 37.
Ke4 {[%clk 0:01:36.8]} 37... Re5+ {[%clk 0:01:32]} 38. Kd4 {[%clk 0:01:36.4]}
38... Ra5 {[%clk 0:01:28.7]} 39. Rd6 {[%clk 0:01:35.7]} 39... Ra2 {[%clk
0:01:27.8]} 40. f3 {[%clk 0:01:34.8]} 40... Rd2+ {[%clk 0:01:27.2]} 41. Kc5
{[%clk 0:01:34.3]} 41... Rc2+ {[%clk 0:01:27.1]} 42. Kd5 {[%clk 0:01:32]} 42...
Re2 {[%clk 0:01:26.3]} 43. Ke4 {[%clk 0:01:31.6]} 43... Kg6 {[%clk 0:01:25.2]}
44. Rd8 {[%clk 0:01:28.9]} 44... Re1 {[%clk 0:01:24.7]} 45. Rg8+ {[%clk
0:01:28.3]} 45... Kf7 {[%clk 0:01:25.2]} 46. Ra8 {[%clk 0:01:26.8]} 46... Rb1
{[%clk 0:01:25.4]} 47. Ra7+ {[%clk 0:01:25.9]} 47... Kg6 {[%clk 0:01:25.4]} 48.
Ra4 {[%clk 0:01:23.5]} 48... Rb3 {[%clk 0:01:25.1]} 49. f4 {[%clk 0:01:23.3]}
49... gxf4 {[%clk 0:01:20.2]} 50. Kxf4 {[%clk 0:01:21.6]} 50... Rb6 {[%clk
0:01:17.9]} 51. Ra5 {[%clk 0:01:19.3]} 51... Re6 {[%clk 0:01:17.8]} 52. Rb5
{[%clk 0:01:16.1]} 52... Rd6 {[%clk 0:01:17.9]} 53. g5 {[%clk 0:01:14.3]} 53...
fxg5+ {[%clk 0:01:12.9]} 54. Rxg5+ {[%clk 0:01:14.1]} 54... Kf6 {[%clk
0:01:13.5]} 55. Rh5 {[%clk 0:01:12.8]} 55... Rd1 {[%clk 0:01:13.2]} 56. Rh6+
{[%clk 0:01:12.3]} 56... Ke7 {[%clk 0:01:13.6]} 57. Ra6 {[%clk 0:01:12.4]} 57...
Rb1 {[%clk 0:01:12]} 58. e4 {[%clk 0:01:11.8]} 58... Rb5 {[%clk 0:01:10.6]} 59.
Ra7+ {[%clk 0:01:09.9]} 59... Ke6 {[%clk 0:01:10.6]} 60. Ra6+ {[%clk 0:01:10.4]}
60... Ke7 {[%clk 0:01:10.8]} 61. e5 {[%clk 0:01:10.9]} 61... Rb1 {[%clk
0:01:10.3]} 62. Ra7+ {[%clk 0:01:08.8]} 62... Ke6 {[%clk 0:01:10.2]} 63. Ra6+
{[%clk 0:01:09.4]} 63... Ke7 {[%clk 0:01:10.7]} 64. Kf5 {[%clk 0:01:09.8]} 64...
Rf1+ {[%clk 0:01:10.4]} 65. Ke4 {[%clk 0:01:10.2]} 65... Re1+ {[%clk 0:01:11.1]}
66. Kd5 {[%clk 0:01:10.6]} 66... Rd1+ {[%clk 0:01:11.7]} 67. Ke4 {[%clk
0:01:11]} 67... Re1+ {[%clk 0:01:12.3]} 68. Kf5 {[%clk 0:01:11.4]} 68... Rf1+
{[%clk 0:01:12.9]} 69. Ke4 {[%clk 0:01:11.7]} 69... Re1+ {[%clk 0:01:13.5]}
1/2-1/2

[Event "Late-Titled-Tuesday-Blitz-January-16-2024"]
[Site "Chess.com"]
[Date "2024.01.16"]
[Round "5"]
[White "SchmakAttack"]
[Black "Beca95"]
[Result "1-0"]
[WhiteElo "2733"]
[BlackElo "2944"]
[TimeControl "180+1"]
[EndTime "14:52:19 PST"]
[Termination "SchmakAttack won by resignation"]

1. d4 {[%clk 0:03:00]} 1... Nf6 {[%clk 0:02:58.5]} 2. c4 {[%clk 0:03:00]} 2...
e6 {[%clk 0:02:57.5]} 3. Nf3 {[%clk 0:02:58.5]} 3... c5 {[%clk 0:02:57.2]} 4. d5
{[%clk 0:02:57.2]} 4... d6 {[%clk 0:02:57.5]} 5. Nc3 {[%clk 0:02:56.6]} 5...
exd5 {[%clk 0:02:58.2]} 6. cxd5 {[%clk 0:02:56.9]} 6... g6 {[%clk 0:02:58.6]} 7.
Bf4 {[%clk 0:02:56.5]} 7... Bg7 {[%clk 0:02:57.4]} 8. Qa4+ {[%clk 0:02:56.3]}
8... Bd7 {[%clk 0:02:57.4]} 9. Qb3 {[%clk 0:02:56.2]} 9... O-O {[%clk
0:02:56.8]} 10. Qxb7 {[%clk 0:02:42.3]} 10... Qa5 {[%clk 0:02:49.5]} 11. Nd2
{[%clk 0:02:26.4]} 11... Qb4 {[%clk 0:02:42.9]} 12. Qxb4 {[%clk 0:02:21.2]}
12... cxb4 {[%clk 0:02:43.8]} 13. Nce4 {[%clk 0:02:18.8]} 13... Nxd5 {[%clk
0:02:43.1]} 14. Bxd6 {[%clk 0:02:17.9]} 14... Rc8 {[%clk 0:02:38.5]} 15. e3
{[%clk 0:02:08]} 15... Bxb2 {[%clk 0:02:14.4]} 16. Rb1 {[%clk 0:02:07.3]} 16...
Bc3 {[%clk 0:02:14.7]} 17. Nxc3 {[%clk 0:01:46.8]} 17... bxc3 {[%clk 0:02:14.9]}
18. Nb3 {[%clk 0:01:47.1]} 18... Bf5 {[%clk 0:02:14.4]} 19. Rc1 {[%clk
0:01:45.3]} 19... Nc6 {[%clk 0:02:13.6]} 20. Ba6 {[%clk 0:01:40.8]} 20... Ncb4
{[%clk 0:02:05.5]} 21. Bxb4 {[%clk 0:01:16.9]} 21... Nxb4 {[%clk 0:02:05]} 22.
Bxc8 {[%clk 0:01:17]} 22... Nd3+ {[%clk 0:02:04.4]} 23. Ke2 {[%clk 0:01:17.4]}
23... Nxc1+ {[%clk 0:01:41.3]} 24. Rxc1 {[%clk 0:01:18.3]} 24... Rxc8 {[%clk
0:01:41.1]} 25. Nd4 {[%clk 0:01:18.8]} 25... Be4 {[%clk 0:01:40.4]} 26. f3
{[%clk 0:01:11.5]} 26... Bd5 {[%clk 0:01:39.7]} 27. Kd3 {[%clk 0:01:06.7]} 27...
Bc4+ {[%clk 0:01:22]} 28. Kc2 {[%clk 0:01:04.2]} 28... a5 {[%clk 0:01:01.8]} 29.
a3 {[%clk 0:00:57.9]} 29... Rc5 {[%clk 0:00:49.6]} 30. g3 {[%clk 0:00:50.4]}
30... Bb5 {[%clk 0:00:40.8]} 31. Kb3 {[%clk 0:00:39.1]} 31... Rc7 {[%clk
0:00:22.7]} 32. Nxb5 {[%clk 0:00:38.4]} 1-0

[Event "Late-Titled-Tuesday-Blitz-January-16-2024"]
[Site "Chess.com"]
[Date "2024.01.16"]
[Round "5"]
[White "MITerryble"]
[Black "JSPrepz"]
[Result "1-0"]
[WhiteElo "3038"]
[BlackElo "2887"]
[TimeControl "180+1"]
[EndTime "14:52:26 PST"]
[Termination "MITerryble won on time"]

1. d4 {[%clk 0:03:00.9]} 1... d5 {[%clk 0:02:56.8]} 2. Bg5 {[%clk 0:02:59.9]}
2... f6 {[%clk 0:02:53.6]} 3. Bc1 {[%clk 0:02:59.1]} 3... c5 {[%clk 0:02:51.5]}
4. dxc5 {[%clk 0:02:59.2]} 4... Nc6 {[%clk 0:02:48.6]} 5. e4 {[%clk 0:02:54.3]}
5... d4 {[%clk 0:02:18.1]} 6. a3 {[%clk 0:02:53]} 6... e5 {[%clk 0:02:17.7]} 7.
b4 {[%clk 0:02:48.7]} 7... a5 {[%clk 0:02:17.9]} 8. b5 {[%clk 0:02:44.9]} 8...
Na7 {[%clk 0:02:17.7]} 9. f4 {[%clk 0:02:35]} 9... Ne7 {[%clk 0:01:55.3]} 10.
Nf3 {[%clk 0:02:26.8]} 10... Ng6 {[%clk 0:01:51.2]} 11. f5 {[%clk 0:02:26.9]}
11... Ne7 {[%clk 0:01:47.8]} 12. c3 {[%clk 0:02:23.4]} 12... g6 {[%clk
0:01:35.2]} 13. cxd4 {[%clk 0:02:01.7]} 13... gxf5 {[%clk 0:01:35.2]} 14. Bd3
{[%clk 0:02:01.8]} 14... fxe4 {[%clk 0:01:27.1]} 15. Bxe4 {[%clk 0:02:02.3]}
15... Nxb5 {[%clk 0:01:20.8]} 16. d5 {[%clk 0:02:02.4]} 16... a4 {[%clk
0:00:29.3]} 17. d6 {[%clk 0:01:36.3]} 17... Ng6 {[%clk 0:00:29.1]} 18. O-O
{[%clk 0:01:31.9]} 18... Bg7 {[%clk 0:00:24.9]} 19. Qd3 {[%clk 0:01:25.3]} 19...
Qa5 {[%clk 0:00:12.5]} 20. Bxg6+ {[%clk 0:01:22.1]} 20... hxg6 {[%clk
0:00:13.4]} 21. Qxg6+ {[%clk 0:01:22.5]} 21... Kf8 {[%clk 0:00:14.1]} 22. Ng5
{[%clk 0:01:20.9]} 22... Nxd6 {[%clk 0:00:04.2]} 23. cxd6 {[%clk 0:01:17.6]}
23... Qd5 {[%clk 0:00:03.8]} 24. Nc3 {[%clk 0:01:00.7]} 24... Qc4 {[%clk
0:00:04.1]} 25. Nce4 {[%clk 0:00:45.1]} 25... Qd4+ {[%clk 0:00:03.6]} 26. Kh1
{[%clk 0:00:44.5]} 26... Qc4 {[%clk 0:00:01.8]} 27. Be3 {[%clk 0:00:43.4]} 27...
Bd7 {[%clk 0:00:01.8]} 28. Rac1 {[%clk 0:00:43]} 28... Be8 {[%clk 0:00:02.2]}
29. Nh7+ {[%clk 0:00:42.7]} 29... Kg8 {[%clk 0:00:02.3]} 30. Nhxf6+ {[%clk
0:00:42.4]} 1-0

[Event "Late-Titled-Tuesday-Blitz-January-16-2024"]
[Site "Chess.com"]
[Date "2024.01.16"]
[Round "5"]
[White "ozates"]
[Black "krzyzan94"]
[Result "0-1"]
[WhiteElo "2582"]
[BlackElo "2823"]
[TimeControl "180+1"]
[EndTime "14:52:26 PST"]
[Termination "krzyzan94 won by resignation"]

1. e4 {[%clk 0:03:00.2]} 1... e5 {[%clk 0:02:58.4]} 2. Nf3 {[%clk 0:02:58.3]}
2... Nc6 {[%clk 0:02:58.9]} 3. Bc4 {[%clk 0:02:57.7]} 3... Nf6 {[%clk
0:02:58.7]} 4. d3 {[%clk 0:02:57.4]} 4... h6 {[%clk 0:02:58.6]} 5. O-O {[%clk
0:02:54.1]} 5... d6 {[%clk 0:02:58.1]} 6. a4 {[%clk 0:02:52.7]} 6... g6 {[%clk
0:02:57.4]} 7. a5 {[%clk 0:02:52.7]} 7... a6 {[%clk 0:02:55.5]} 8. Nc3 {[%clk
0:02:52.5]} 8... Bg7 {[%clk 0:02:55]} 9. Be3 {[%clk 0:02:45]} 9... O-O {[%clk
0:02:53.2]} 10. h3 {[%clk 0:02:45.4]} 10... Kh7 {[%clk 0:02:43.9]} 11. d4 {[%clk
0:02:40.9]} 11... Qe8 {[%clk 0:02:29.1]} 12. Nd5 {[%clk 0:02:38.6]} 12... Nxd5
{[%clk 0:02:23.6]} 13. exd5 {[%clk 0:02:39.5]} 13... exd4 {[%clk 0:02:14.8]} 14.
Nxd4 {[%clk 0:02:29.8]} 14... Nxd4 {[%clk 0:01:56.6]} 15. Bxd4 {[%clk
0:02:29.7]} 15... Bxd4 {[%clk 0:01:57.5]} 16. Qxd4 {[%clk 0:02:30.3]} 16... Qe5
{[%clk 0:01:58.2]} 17. Qxe5 {[%clk 0:02:05]} 17... dxe5 {[%clk 0:01:59.1]} 18.
b4 {[%clk 0:02:05.1]} 18... f5 {[%clk 0:01:54.5]} 19. Bb3 {[%clk 0:02:04.6]}
19... Kg7 {[%clk 0:01:48.6]} 20. c4 {[%clk 0:02:04.4]} 20... Bd7 {[%clk
0:01:48.7]} 21. Rad1 {[%clk 0:02:00.6]} 21... Rad8 {[%clk 0:01:39.9]} 22. c5
{[%clk 0:01:59]} 22... Bb5 {[%clk 0:01:37.9]} 23. Rfe1 {[%clk 0:01:58.9]} 23...
e4 {[%clk 0:01:38.6]} 24. Rd4 {[%clk 0:01:51.2]} 24... Kf6 {[%clk 0:01:34.4]}
25. f4 {[%clk 0:01:46.3]} 25... g5 {[%clk 0:01:34.8]} 26. fxg5+ {[%clk
0:01:44.8]} 26... hxg5 {[%clk 0:01:35.7]} 27. g4 {[%clk 0:01:45.2]} 27... Ke5
{[%clk 0:01:31.5]} 28. Rd2 {[%clk 0:01:13.4]} 28... fxg4 {[%clk 0:01:07.4]} 29.
Rg2 {[%clk 0:01:09]} 29... Rf4 {[%clk 0:00:59.7]} 30. Re3 {[%clk 0:00:57.4]}
30... Rh8 {[%clk 0:00:43.4]} 31. Rxg4 {[%clk 0:00:33.3]} 31... Rxg4+ {[%clk
0:00:43.8]} 32. hxg4 {[%clk 0:00:34.1]} 32... Kf4 {[%clk 0:00:44.7]} 33. Re1
{[%clk 0:00:24.8]} 33... e3 {[%clk 0:00:45.2]} 34. d6 {[%clk 0:00:23.5]} 34...
cxd6 {[%clk 0:00:46.1]} 35. cxd6 {[%clk 0:00:24.4]} 35... Bc6 {[%clk 0:00:39.3]}
36. Rf1+ {[%clk 0:00:23.2]} 36... Kg3 {[%clk 0:00:38.5]} 0-1

[Event "Late-Titled-Tuesday-Blitz-January-16-2024"]
[Site "Chess.com"]
[Date "2024.01.16"]
[Round "5"]
[White "ToddBryant"]
[Black "argentum049"]
[Result "0-1"]
[WhiteElo "2305"]
[BlackElo "2492"]
[TimeControl "180+1"]
[EndTime "14:52:30 PST"]
[Termination "argentum049 won on time"]

1. e4 {[%clk 0:02:52.6]} 1... e6 {[%clk 0:02:57.4]} 2. d4 {[%clk 0:02:52.1]}
2... d5 {[%clk 0:02:58.1]} 3. e5 {[%clk 0:02:52.8]} 3... c5 {[%clk 0:02:58.1]}
4. c3 {[%clk 0:02:53.1]} 4... Qa5 {[%clk 0:02:58.8]} 5. Bd2 {[%clk 0:02:41.4]}
5... Nc6 {[%clk 0:02:57.8]} 6. Nf3 {[%clk 0:02:41.3]} 6... Qb6 {[%clk
0:02:58.1]} 7. Qb3 {[%clk 0:02:12.2]} 7... cxd4 {[%clk 0:02:21.9]} 8. Qxb6
{[%clk 0:02:08.1]} 8... axb6 {[%clk 0:02:22.8]} 9. cxd4 {[%clk 0:02:09]} 9...
Nb4 {[%clk 0:02:18.2]} 10. Bxb4 {[%clk 0:01:54.7]} 10... Bxb4+ {[%clk
0:02:19.1]} 11. Nc3 {[%clk 0:01:55.6]} 11... Bd7 {[%clk 0:02:17.9]} 12. Bd3
{[%clk 0:01:52]} 12... Ne7 {[%clk 0:02:13.3]} 13. O-O {[%clk 0:01:51.1]} 13...
Nc6 {[%clk 0:02:11]} 14. Nb5 {[%clk 0:01:45.3]} 14... O-O {[%clk 0:02:09.8]} 15.
a3 {[%clk 0:01:40.9]} 15... Be7 {[%clk 0:02:09.7]} 16. b4 {[%clk 0:01:40.5]}
16... f6 {[%clk 0:02:00.4]} 17. exf6 {[%clk 0:01:33.6]} 17... Bxf6 {[%clk
0:02:01.3]} 18. Rfe1 {[%clk 0:01:28.3]} 18... Rac8 {[%clk 0:01:51.9]} 19. Rad1
{[%clk 0:01:19.6]} 19... Ne7 {[%clk 0:01:46.4]} 20. Ne5 {[%clk 0:01:08.8]} 20...
Bxe5 {[%clk 0:01:20.8]} 21. Rxe5 {[%clk 0:01:08]} 21... Ng6 {[%clk 0:00:58.7]}
22. Bxg6 {[%clk 0:00:41.3]} 22... hxg6 {[%clk 0:00:57.6]} 23. a4 {[%clk
0:00:30]} 23... Rc4 {[%clk 0:00:57.2]} 24. Rb1 {[%clk 0:00:20.1]} 24... Ra8
{[%clk 0:00:56.2]} 25. Na3 {[%clk 0:00:11]} 25... Rxd4 {[%clk 0:00:55.7]} 26.
Nc2 {[%clk 0:00:09.5]} 26... Rd2 {[%clk 0:00:55.4]} 27. Ne3 {[%clk 0:00:08.4]}
27... Rxa4 {[%clk 0:00:55.5]} 28. Rc1 {[%clk 0:00:08.5]} 28... Rxb4 {[%clk
0:00:53.9]} 29. h4 {[%clk 0:00:07.2]} 29... d4 {[%clk 0:00:52.4]} 30. Nc4 {[%clk
0:00:04]} 30... Ra2 {[%clk 0:00:46.2]} 31. Nd6 {[%clk 0:00:02.4]} 31... d3
{[%clk 0:00:46.4]} 0-1

[Event "Late-Titled-Tuesday-Blitz-January-16-2024"]
[Site "Chess.com"]
[Date "2024.01.16"]
[Round "5"]
[White "Mikhail_Golubev"]
[Black "chenxiaoyuer"]
[Result "0-1"]
[WhiteElo "2529"]
[BlackElo "2759"]
[TimeControl "180+1"]
[EndTime "14:52:31 PST"]
[Termination "chenxiaoyuer won on time"]

1. e4 {[%clk 0:03:00.9]} 1... c5 {[%clk 0:02:59.7]} 2. Nf3 {[%clk 0:03:00.8]}
2... d6 {[%clk 0:03:00.3]} 3. d4 {[%clk 0:03:00.7]} 3... cxd4 {[%clk 0:03:01.2]}
4. Nxd4 {[%clk 0:03:00.6]} 4... Nf6 {[%clk 0:03:02.1]} 5. Nc3 {[%clk 0:03:00.2]}
5... Nc6 {[%clk 0:03:02.7]} 6. Bc4 {[%clk 0:02:59.8]} 6... Bd7 {[%clk
0:03:00.1]} 7. Bb3 {[%clk 0:02:47.9]} 7... g6 {[%clk 0:02:57.8]} 8. Be3 {[%clk
0:02:46.3]} 8... Ng4 {[%clk 0:02:43.2]} 9. Nxc6 {[%clk 0:02:45.3]} 9... bxc6
{[%clk 0:02:35.9]} 10. Qf3 {[%clk 0:02:44.1]} 10... Ne5 {[%clk 0:02:29.2]} 11.
Qe2 {[%clk 0:02:42.9]} 11... Bg7 {[%clk 0:02:26.6]} 12. O-O-O {[%clk 0:02:41.4]}
12... O-O {[%clk 0:02:20.5]} 13. h3 {[%clk 0:02:31.3]} 13... c5 {[%clk
0:02:14.5]} 14. f4 {[%clk 0:02:20.6]} 14... Nc6 {[%clk 0:02:13.3]} 15. e5 {[%clk
0:01:43.8]} 15... Nd4 {[%clk 0:01:54]} 16. Bxd4 {[%clk 0:01:40.1]} 16... cxd4
{[%clk 0:01:54.9]} 17. Rxd4 {[%clk 0:01:39.8]} 17... Qb6 {[%clk 0:01:54.7]} 18.
Rhd1 {[%clk 0:01:34.7]} 18... Bc6 {[%clk 0:01:52.2]} 19. Nd5 {[%clk 0:01:26.1]}
19... Bxd5 {[%clk 0:01:50.5]} 20. Rxd5 {[%clk 0:01:25.8]} 20... dxe5 {[%clk
0:01:49.5]} 21. fxe5 {[%clk 0:01:26]} 21... e6 {[%clk 0:01:43.5]} 22. R5d4
{[%clk 0:00:21.5]} 22... Qc5 {[%clk 0:01:38.4]} 23. Re4 {[%clk 0:00:21.2]} 23...
a5 {[%clk 0:01:37.9]} 24. a4 {[%clk 0:00:20.5]} 24... Rab8 {[%clk 0:01:36.7]}
25. Kb1 {[%clk 0:00:19.5]} 25... Rfd8 {[%clk 0:01:35.3]} 26. Rf1 {[%clk
0:00:18.9]} 26... Rd7 {[%clk 0:01:32.8]} 27. Ka2 {[%clk 0:00:12.3]} 27... Rdb7
{[%clk 0:01:29.4]} 28. Qf2 {[%clk 0:00:11]} 28... Qc6 {[%clk 0:01:27.9]} 29. Rf4
{[%clk 0:00:09]} 29... Qd7 {[%clk 0:01:23]} 30. Re4 {[%clk 0:00:08.4]} 30... h5
{[%clk 0:01:17.8]} 31. g4 {[%clk 0:00:07.8]} 31... hxg4 {[%clk 0:01:17.2]} 32.
hxg4 {[%clk 0:00:08.4]} 32... Rc8 {[%clk 0:01:15.9]} 33. Qe2 {[%clk 0:00:06.2]}
33... Rc5 {[%clk 0:01:12.6]} 34. Rd1 {[%clk 0:00:06]} 34... Qe7 {[%clk
0:01:12.1]} 35. Qd3 {[%clk 0:00:05.8]} 35... Rb8 {[%clk 0:01:09.6]} 36. Ree1
{[%clk 0:00:04.6]} 36... Rxe5 {[%clk 0:01:09]} 37. Rxe5 {[%clk 0:00:04.2]} 37...
Bxe5 {[%clk 0:01:09.9]} 38. Qe4 {[%clk 0:00:04.2]} 38... Bg7 {[%clk 0:01:10]}
39. c3 {[%clk 0:00:02.8]} 39... Qc5 {[%clk 0:01:08]} 40. Bc4 {[%clk 0:00:02.4]}
40... Qf2 {[%clk 0:01:07.7]} 41. Bb5 {[%clk 0:00:02.4]} 41... Bxc3 {[%clk
0:01:04.8]} 42. Rb1 {[%clk 0:00:01.3]} 42... Bg7 {[%clk 0:01:04.6]} 0-1

[Event "Late-Titled-Tuesday-Blitz-January-16-2024"]
[Site "Chess.com"]
[Date "2024.01.16"]
[Round "5"]
[White "GiorgianBarbosa"]
[Black "aghasiyevkamal"]
[Result "0-1"]
[WhiteElo "2476"]
[BlackElo "2623"]
[TimeControl "180+1"]
[EndTime "14:52:35 PST"]
[Termination "aghasiyevkamal won on time"]

1. c4 {[%clk 0:03:00.9]} 1... e5 {[%clk 0:02:55.3]} 2. g3 {[%clk 0:03:01.8]}
2... Nf6 {[%clk 0:02:54.2]} 3. Bg2 {[%clk 0:03:02.7]} 3... d5 {[%clk 0:02:50.4]}
4. cxd5 {[%clk 0:02:58.2]} 4... Nxd5 {[%clk 0:02:50.6]} 5. Nf3 {[%clk
0:02:59.1]} 5... Nc6 {[%clk 0:02:49.7]} 6. d4 {[%clk 0:02:53.8]} 6... Bb4+
{[%clk 0:02:44.2]} 7. Bd2 {[%clk 0:02:52.2]} 7... exd4 {[%clk 0:02:43.7]} 8.
Bxb4 {[%clk 0:02:35]} 8... Ndxb4 {[%clk 0:02:42.7]} 9. a3 {[%clk 0:02:34.7]}
9... Na6 {[%clk 0:02:23.5]} 10. b4 {[%clk 0:02:33.5]} 10... Qd5 {[%clk
0:02:23.3]} 11. O-O {[%clk 0:02:00.2]} 11... O-O {[%clk 0:02:22.7]} 12. Nc3
{[%clk 0:01:59.8]} 12... Qc4 {[%clk 0:02:17.7]} 13. Ne4 {[%clk 0:01:52.9]} 13...
Bf5 {[%clk 0:01:59.9]} 14. Nfd2 {[%clk 0:01:26.6]} 14... Qb5 {[%clk 0:01:53.2]}
15. Rc1 {[%clk 0:01:04.2]} 15... d3 {[%clk 0:01:43.5]} 16. exd3 {[%clk
0:00:59.3]} 16... Qxd3 {[%clk 0:01:41.7]} 17. Rc3 {[%clk 0:00:52]} 17... Qb5
{[%clk 0:01:32]} 18. Qh5 {[%clk 0:00:40]} 18... Nd4 {[%clk 0:01:11.2]} 19. Re1
{[%clk 0:00:21.7]} 19... Bxe4 {[%clk 0:01:07.6]} 20. Qxb5 {[%clk 0:00:08.8]}
20... Nxb5 {[%clk 0:01:07.7]} 21. Nxe4 {[%clk 0:00:09]} 21... Nxc3 {[%clk
0:01:07.3]} 22. Nxc3 {[%clk 0:00:09.9]} 22... c6 {[%clk 0:01:01.8]} 23. b5
{[%clk 0:00:09.9]} 23... Nc5 {[%clk 0:00:57.2]} 24. bxc6 {[%clk 0:00:09.8]}
24... Rae8 {[%clk 0:00:52.6]} 25. Rxe8 {[%clk 0:00:03.2]} 25... Rxe8 {[%clk
0:00:53]} 26. cxb7 {[%clk 0:00:04.1]} 26... Re1+ {[%clk 0:00:52.9]} 27. Bf1
{[%clk 0:00:04.3]} 27... Nxb7 {[%clk 0:00:53.2]} 28. Nb5 {[%clk 0:00:04.5]}
28... a5 {[%clk 0:00:52.4]} 29. Kg2 {[%clk 0:00:03.4]} 29... Ra1 {[%clk
0:00:50.6]} 30. h4 {[%clk 0:00:04.3]} 30... g6 {[%clk 0:00:49.6]} 31. Kg1 {[%clk
0:00:04.3]} 31... Nd6 {[%clk 0:00:49.5]} 32. Kg2 {[%clk 0:00:05.2]} 32... Nxb5
{[%clk 0:00:48.6]} 33. Bxb5 {[%clk 0:00:06.1]} 33... Rxa3 {[%clk 0:00:48.9]} 0-1

[Event "Late-Titled-Tuesday-Blitz-January-16-2024"]
[Site "Chess.com"]
[Date "2024.01.16"]
[Round "5"]
[White "cthulhuuu"]
[Black "chessisveryfun1264"]
[Result "0-1"]
[WhiteElo "2435"]
[BlackElo "2587"]
[TimeControl "180+1"]
[EndTime "14:52:36 PST"]
[Termination "chessisveryfun1264 won by checkmate"]

1. e4 {[%clk 0:03:00]} 1... e6 {[%clk 0:03:00.5]} 2. d3 {[%clk 0:03:00.1]} 2...
d5 {[%clk 0:03:00.9]} 3. Nd2 {[%clk 0:03:00.8]} 3... Ne7 {[%clk 0:03:00.8]} 4.
g3 {[%clk 0:02:58.5]} 4... c5 {[%clk 0:03:00.8]} 5. Bg2 {[%clk 0:02:58.6]} 5...
Nbc6 {[%clk 0:03:01.5]} 6. Ngf3 {[%clk 0:02:58.9]} 6... g6 {[%clk 0:03:02.1]} 7.
O-O {[%clk 0:02:58.7]} 7... Bg7 {[%clk 0:03:02.8]} 8. Re1 {[%clk 0:02:58.7]}
8... O-O {[%clk 0:03:02.2]} 9. e5 {[%clk 0:02:57.7]} 9... b5 {[%clk 0:03:01.4]}
10. h4 {[%clk 0:02:56.3]} 10... h5 {[%clk 0:03:00.5]} 11. Nf1 {[%clk 0:02:50.6]}
11... a5 {[%clk 0:02:59.1]} 12. Bf4 {[%clk 0:02:45.4]} 12... b4 {[%clk
0:02:58.9]} 13. Qd2 {[%clk 0:02:44.8]} 13... a4 {[%clk 0:02:55.9]} 14. Bh6
{[%clk 0:02:39.7]} 14... a3 {[%clk 0:02:55.8]} 15. b3 {[%clk 0:02:34.9]} 15...
Ba6 {[%clk 0:02:52.4]} 16. Bh3 {[%clk 0:02:06.9]} 16... c4 {[%clk 0:02:49.3]}
17. d4 {[%clk 0:01:56.6]} 17... Nf5 {[%clk 0:02:35.1]} 18. Bxf5 {[%clk
0:01:52.7]} 18... exf5 {[%clk 0:02:36]} 19. e6 {[%clk 0:01:38.5]} 19... fxe6
{[%clk 0:02:30.9]} 20. Rxe6 {[%clk 0:01:25.9]} 20... Rf6 {[%clk 0:02:30.7]} 21.
Bg5 {[%clk 0:01:17]} 21... Rxe6 {[%clk 0:02:29.3]} 22. Bxd8 {[%clk 0:01:17]}
22... Rxd8 {[%clk 0:02:29.4]} 23. Re1 {[%clk 0:01:13.8]} 23... Re4 {[%clk
0:02:29.7]} 24. Ng5 {[%clk 0:00:48.3]} 24... Nxd4 {[%clk 0:02:27.5]} 25. Kg2
{[%clk 0:00:36.4]} 25... c3 {[%clk 0:02:22.7]} 26. Qd1 {[%clk 0:00:31.7]} 26...
Re2 {[%clk 0:01:40.3]} 27. Rxe2 {[%clk 0:00:24.1]} 27... Bxe2 {[%clk 0:01:39.5]}
28. Qc1 {[%clk 0:00:24]} 28... Re8 {[%clk 0:01:35.5]} 29. Ne3 {[%clk 0:00:22.8]}
29... Bb5 {[%clk 0:01:27.5]} 30. f3 {[%clk 0:00:17.1]} 30... Bc6 {[%clk
0:01:24.1]} 31. Kf2 {[%clk 0:00:16.9]} 31... Ne6 {[%clk 0:01:22.4]} 32. Qd1
{[%clk 0:00:14]} 32... d4 {[%clk 0:01:15.1]} 33. Nc4 {[%clk 0:00:12.2]} 33...
Nc5 {[%clk 0:01:12]} 34. Kg2 {[%clk 0:00:06.4]} 34... d3 {[%clk 0:01:09.7]} 35.
cxd3 {[%clk 0:00:06]} 35... Bd4 {[%clk 0:01:10.2]} 36. Qf1 {[%clk 0:00:05.1]}
36... c2 {[%clk 0:01:04.3]} 37. Qc1 {[%clk 0:00:05]} 37... Nxd3 {[%clk
0:01:04.9]} 38. Qd2 {[%clk 0:00:04.2]} 38... c1=Q {[%clk 0:01:04]} 39. Qxd3
{[%clk 0:00:04.2]} 39... Qg1+ {[%clk 0:01:02.6]} 40. Kh3 {[%clk 0:00:04.4]}
40... Qh1# {[%clk 0:01:03.5]} 0-1